fUSD/lending_fUSD_20250606
["ID","MTS","AMOUNT","RATE_DAILY","PERIOD"]
[364673156,1749195057879,-151.0,0.00030328,7]
[364673157,1749195057889,-174.639141,0.00030328,7]
[364673158,1749195057898,-480.0,0.00030328,7]
[364673159,1749195057908,-253.567617,0.00030328,7]
[364673160,1749195057917,-253.567617,0.00030328,7]
[364673161,1749195057927,-480.0,0.00030328,7]
[364673162,1749195057936,-253.567617,0.00030328,7]
[364673163,1749195057945,-253.567617,0.00030328,7]
[364673164,1749195057954,-480.0,0.00030328,7]
[364673165,1749195057964,-480.0,0.00030328,7]
[364673166,1749195057973,-480.0,0.00030328,7]
[364673167,1749195057982,-480.0,0.00030328,7]
[364673168,1749195057992,-480.0,0.00030328,7]
[364673169,1749195058001,-491.51365123,0.00030328,7]
[364673170,1749195058010,-480.0,0.00030328,7]
[364673171,1749195058020,-151.0,0.00030328,7]
[364673172,1749195058029,-151.0,0.00030328,7]
[364673173,1749195058038,-151.0,0.00030328,7]
[364673174,1749195058048,-480.0,0.00030328,7]
[364673175,1749195058057,-743.81,0.00030328,7]
[364673176,1749195058066,-480.0,0.00030328,7]
[364673177,1749195058076,-480.0,0.00030328,7]
[364673178,1749195058085,-151.0,0.00030328,7]
[364673179,1749195058095,-480.0,0.00030328,7]
[364673180,1749195058104,-480.0,0.00030328,7]
[364673181,1749195058113,-151.0,0.00030328,7]
[364673182,1749195058122,-524.59,0.00030328,7]
[364673183,1749195058133,-212.018929,0.00030328,7]
[364673184,1749195058143,-212.018929,0.00030328,7]
[364673185,1749195058153,-499.91072532,0.00030328,7]
[364673186,1749195058162,-480.0,0.00030328,7]
[364673187,1749195058171,-480.0,0.00030328,7]
[364673188,1749195058181,-480.0,0.00030328,7]
[364673189,1749195058190,-480.0,0.00030328,7]
[364673190,1749195058199,-480.0,0.00030328,7]
[364673191,1749195058208,-1194.15,0.00030328,7]
[364673192,1749195058218,-443.47294183,0.00030328,7]
[364673193,1749195058227,-480.0,0.00030328,7]
[364673194,1749195058236,-480.0,0.00030328,7]
[364673195,1749195058245,-739.76,0.00030328,7]
[364673196,1749195058254,-151.0,0.00030328,7]
[364673197,1749195058265,-587.05638509,0.00030328,7]
[364673198,1749195058274,-151.0,0.00030328,7]
[364673199,1749195058283,-480.0,0.00030328,7]
[364673200,1749195058292,-151.0,0.00030328,7]
[364673201,1749195058301,-480.0,0.00030328,7]
[364673202,1749195058311,-151.0,0.00030328,7]
[364673203,1749195058320,-480.0,0.00030328,7]
[364673204,1749195058329,-548.8,0.00030328,7]
[364673205,1749195058338,-480.0,0.00030328,7]
[364673206,1749195058347,-480.0,0.00030328,7]
[364673207,1749195058356,-596.13,0.00030328,7]
[364673208,1749195058365,-480.0,0.00030328,7]
[364673209,1749195058374,-728.32,0.00030328,7]
[364673210,1749195058384,-480.0,0.00030328,7]
[364673211,1749195058394,-480.0,0.00030328,7]
[364673212,1749195058404,-480.0,0.00030328,7]
[364673213,1749195058413,-480.0,0.00030328,7]
[364673214,1749195058423,-151.0,0.00030328,7]
[364673215,1749195058432,-502.34256146,0.00030328,7]
[364673216,1749195058442,-543.43,0.00030328,7]
[364673217,1749195058452,-480.0,0.00030328,7]
[364673218,1749195058461,-151.0,0.00030328,7]
[364673219,1749195058471,-502.62,0.00030328,7]
[364673220,1749195058480,-480.0,0.00030328,7]
[364673221,1749195058490,-480.0,0.00030328,7]
[364673222,1749195058500,-480.0,0.00030328,7]
[364673223,1749195058510,-480.0,0.00030328,7]
[364673224,1749195058519,-480.0,0.00030328,7]
[364673225,1749195058529,-480.0,0.00030328,7]
[364673226,1749195058539,-480.0,0.00030328,7]
[364673227,1749195058548,-495.39431166,0.00030328,7]
[364673228,1749195058558,-480.0,0.00030328,7]
[364673229,1749195058568,-486.43,0.00030328,7]
[364673230,1749195058578,-480.0,0.00030328,7]
[364673231,1749195058588,-731.51,0.00030328,30]
[364673232,1749195058597,-480.0,0.00030328,7]
[364673233,1749195058607,-872.44,0.00030328,7]
[364673234,1749195058616,-480.0,0.00030328,7]
[364673235,1749195058626,-480.0,0.00030328,7]
[364673236,1749195058635,-480.0,0.00030328,7]
[364673237,1749195058646,-208.7213584,0.00030328,7]
[364673238,1749195058656,-480.0,0.00030328,7]
[364673239,1749195058665,-480.0,0.00030328,7]
[364673240,1749195058675,-480.0,0.00030328,7]
[364673241,1749195058685,-844.68,0.00030328,7]
[364673242,1749195058694,-151.0,0.00030328,7]
[364673243,1749195058703,-151.0,0.00030328,7]
[364673244,1749195058712,-480.0,0.00030328,7]
[364673245,1749195058721,-936.662706,0.00030328,7]
[364673246,1749195058730,-936.662706,0.00030328,7]
[364673247,1749195058740,-480.0,0.00030328,7]
[364673248,1749195058749,-936.662706,0.00030328,7]
[364673249,1749195058758,-936.662706,0.00030328,7]
[364673250,1749195058767,-480.0,0.00030328,7]
[364673251,1749195058776,-480.0,0.00030328,7]
[364673252,1749195058786,-480.0,0.00030328,7]
[364673253,1749195058795,-480.0,0.00030328,7]
[364673254,1749195058806,-480.0,0.00030328,7]
[364673255,1749195058820,-151.0,0.00030328,7]
[364673256,1749195058833,-480.0,0.00030328,7]
[364673257,1749195058842,-151.0,0.00030328,7]
[364673258,1749195058852,-480.0,0.00030328,7]
[364673259,1749195058861,-480.0,0.00030328,7]
[364673260,1749195058874,-480.0,0.00030328,7]
[364673261,1749195058883,-473.1908608,0.00030328,7]
[364673262,1749195058893,-151.0,0.00030328,7]
[364673263,1749195058902,-151.0,0.00030328,7]
[364673264,1749195058911,-480.0,0.00030328,7]
[364673265,1749195058921,-480.0,0.00030328,7]
[364673266,1749195058930,-480.0,0.00030328,7]
[364673267,1749195058940,-480.0,0.00030328,7]
[364673268,1749195058949,-480.0,0.00030328,7]
[364673269,1749195058958,-545.7404718,0.00030328,7]
[364673270,1749195058969,-889.06,0.00030328,7]
[364673271,1749195058978,-480.0,0.00030328,7]
[364673272,1749195059052,-480.0,0.00030328,7]
[364673273,1749195059062,-151.0,0.00030328,7]
[364673274,1749195059071,-151.0,0.00030328,7]
[364673275,1749195059080,-151.0,0.00030328,7]
[364673276,1749195059088,-151.0,0.00030328,7]
[364673277,1749195059097,-480.0,0.00030328,7]
[364673278,1749195059107,-480.0,0.00030328,7]
[364673279,1749195059115,-480.0,0.00030328,7]
[364673280,1749195059125,-645.26,0.00030328,7]
[364673281,1749195059134,-480.0,0.00030328,7]
[364673282,1749195059144,-150.0,0.00030328,2]
[364673283,1749195059153,-480.0,0.00030328,7]
[364673284,1749195059163,-1247.94,0.00030328,7]
[364673285,1749195059172,-487.04689667,0.00030328,7]
[364673286,1749195059181,-151.0,0.00030328,7]
[364673287,1749195059190,-239.780892,0.00030328,7]
[364673288,1749195059199,-760.34,0.00030328,7]
[364673289,1749195059208,-480.0,0.00030328,7]
[364673290,1749195059218,-480.0,0.00030328,7]
[364673291,1749195059227,-480.0,0.00030328,7]
[364673292,1749195059236,-767.62,0.00030328,7]
[364673293,1749195059245,-1400.52,0.00030328,7]
[364673294,1749195059254,-495.4,0.00030328,7]
[364673295,1749195059263,-480.0,0.00030328,7]
[364673296,1749195059272,-480.0,0.00030328,7]
[364673297,1749195059282,-404.18732299,0.00030328,7]
[364673298,1749195059291,-1416.2,0.00030328,7]
[364673299,1749195059300,-480.0,0.00030328,7]
[364673300,1749195059309,-2160.01623,0.00030328,7]
[364673301,1749195059318,-480.0,0.00030328,7]
[364673302,1749195059327,-480.0,0.00030328,7]
[364673303,1749195059336,-151.0,0.00030328,7]
[364673304,1749195059345,-151.0,0.00030328,7]
[364673305,1749195059355,-772.23,0.00030328,7]
[364673306,1749195059364,-1026.87,0.00030328,7]
[364673307,1749195059374,-1405.79,0.00030328,7]
[364673308,1749195059383,-704.39,0.00030328,7]
[364673309,1749195059394,-480.0,0.00030328,7]
[364673310,1749195059403,-480.0,0.00030328,7]
[364673311,1749195059413,-959.69,0.00030328,7]
[364673312,1749195059423,-534.57,0.00030328,7]
[364673313,1749195059432,-191.36473,0.00030328,7]
[364673314,1749195059442,-191.36473,0.00030328,7]
[364673315,1749195059451,-480.0,0.00030328,7]
[364673316,1749195059460,-517.00093178,0.00030328,7]
[364673317,1749195059470,-151.0,0.00030328,7]
[364673318,1749195059479,-1697.41,0.00030328,7]
[364673319,1749195059489,-480.0,0.00030328,7]
[364673320,1749195059499,-151.0,0.00030328,7]
[364673321,1749195059508,-191.36473,0.00030328,7]
[364673322,1749195059518,-191.36473,0.00030328,7]
[364673323,1749195059527,-151.0,0.00030328,7]
[364673324,1749195059536,-480.0,0.00030328,7]
[364673325,1749195059546,-151.37232,0.00030328,7]
[364673326,1749195059555,-1684.21,0.00030328,7]
[364673327,1749195059565,-151.0,0.00030328,7]
[364673328,1749195059574,-151.0,0.00030328,7]
[364673329,1749195059583,-627.99,0.00030328,7]
[364673330,1749195059593,-2000.000568,0.00030328,7]
[364673331,1749195059602,-460.0,0.00030328,7]
[364673332,1749195059611,-480.0,0.00030328,7]
[364673333,1749195059620,-480.0,0.00030328,7]
[364673334,1749195059630,-654.73,0.00030328,7]
[364673335,1749195059639,-751.32,0.00030328,7]
[364673336,1749195059649,-480.0,0.00030328,7]
[364673337,1749195059658,-460.00088065,0.00030328,7]
[364673338,1749195059667,-480.0,0.00030328,7]
[364673339,1749195059677,-873.28,0.00030328,7]
[364673340,1749195059686,-480.0,0.00030328,7]
[364673341,1749195059695,-480.0,0.00030328,7]
[364673342,1749195059705,-409.09319824,0.00030328,7]
[364673343,1749195059715,-1201.48,0.00030328,7]
[364673344,1749195059724,-480.0,0.00030328,7]
[364673345,1749195059734,-480.0,0.00030328,7]
[364673346,1749195059743,-480.0,0.00030328,7]
[364673347,1749195059752,-480.0,0.00030328,7]
[364673348,1749195059762,-480.0,0.00030328,7]
[364673349,1749195059771,-480.0,0.00030328,7]
[364673350,1749195059780,-480.0,0.00030328,7]
[364673351,1749195059790,-864.22,0.00030328,7]
[364673352,1749195059802,-791.03,0.00030328,7]
[364673353,1749195059811,-480.0,0.00030328,7]
[364673354,1749195059820,-480.0,0.00030328,7]
[364673355,1749195059834,-480.0,0.00030328,7]
[364673356,1749195059846,-480.0,0.00030328,7]
[364673357,1749195059855,-1004.71,0.00030328,7]
[364673358,1749195059865,-480.0,0.00030328,7]
[364673359,1749195059875,-1800.3,0.00030328,7]
[364673360,1749195059884,-863.38,0.00030328,7]
[364673361,1749195059894,-480.0,0.00030328,7]
[364673362,1749195059904,-460.0,0.00030328,7]
[364673363,1749195059913,-1214.39,0.00030328,7]
[364673364,1749195059922,-480.0,0.00030328,7]
[364673365,1749195059931,-480.0,0.00030328,7]
[364673366,1749195059940,-508.96,0.00030328,7]
[364673367,1749195059950,-460.0,0.00030328,7]
[364673368,1749195059959,-480.0,0.00030328,7]
[364673369,1749195059968,-480.0,0.00030328,7]
[364673370,1749195059978,-480.0,0.00030328,7]
[364673371,1749195059987,-1103.57,0.00030328,7]
[364673372,1749195059996,-480.0,0.00030328,7]
[364673373,1749195060006,-668.08,0.00030328,7]
[364673374,1749195060015,-480.0,0.00030328,7]
[364673375,1749195060024,-207.2535787,0.00030328,7]
[364673376,1749195060033,-1977.82,0.00030328,7]
[364673377,1749195060043,-480.0,0.00030328,7]
[364673378,1749195060053,-480.0,0.00030328,7]
[364673379,1749195060063,-480.0,0.00030328,7]
[364673380,1749195060072,-601.8279368,0.00030328,7]
[364673381,1749195060082,-480.0,0.00030328,7]
[364673382,1749195060092,-480.0,0.00030328,7]
[364673383,1749195060101,-558.51025321,0.00030328,7]
[364673384,1749195060110,-1493.9,0.00030328,7]
[364673385,1749195060119,-480.0,0.00030328,7]
[364673386,1749195060128,-480.0,0.00030328,7]
[364673387,1749195060138,-480.0,0.00030328,7]
[364673388,1749195060148,-480.0,0.00030328,7]
[364673389,1749195060158,-1437.75,0.00030328,7]
[364673390,1749195060167,-807.4,0.00030328,7]
[364673391,1749195060176,-151.0,0.00030328,7]
[364673392,1749195060186,-480.0,0.00030328,7]
[364673393,1749195060195,-1344.78,0.00030328,7]
[364673394,1749195060205,-608.92,0.00030328,7]
[364673395,1749195060215,-480.0,0.00030328,7]
[364673396,1749195060224,-1484.88,0.00030328,7]
[364673397,1749195060234,-480.0,0.00030328,7]
[364673398,1749195060243,-1083.59,0.00030328,7]
[364673399,1749195060252,-151.0,0.00030328,7]
[364673400,1749195060261,-151.0,0.00030328,7]
[364673401,1749195060270,-480.0,0.00030328,7]
[364673402,1749195060279,-480.0,0.00030328,7]
[364673403,1749195060289,-151.0,0.00030328,7]
[364673404,1749195060298,-151.0,0.00030328,7]
[364673405,1749195060308,-586.04108541,0.00030328,7]
[364673406,1749195060317,-507.16,0.00030328,7]
[364673407,1749195060326,-480.0,0.00030328,7]
[364673408,1749195060335,-550.14,0.00030328,7]
[364673409,1749195060344,-480.0,0.00030328,7]
[364673410,1749195060353,-480.0,0.00030328,7]
[364673411,1749195060362,-463.23436416,0.00030328,7]
[364673412,1749195060371,-480.0,0.00030328,7]
[364673413,1749195060381,-480.0,0.00030328,7]
[364673414,1749195060391,-480.0,0.00030328,7]
[364673415,1749195060400,-1226.95,0.00030328,7]
[364673416,1749195060409,-480.0,0.00030328,7]
[364673417,1749195060418,-480.0,0.00030328,7]
[364673418,1749195060427,-2114.94,0.00030328,7]
[364673419,1749195060437,-482.80318006,0.00030328,7]
[364673420,1749195060446,-480.0,0.00030328,7]
[364673421,1749195060456,-480.0,0.00030328,7]
[364673422,1749195060465,-485.83058293,0.00030328,7]
[364673423,1749195060481,-480.0,0.00030328,7]
[364673424,1749195060492,-480.0,0.00030328,7]
[364673425,1749195060502,-480.0,0.00030328,7]
[364673426,1749195060511,-480.0,0.00030328,7]
[364673427,1749195060520,-176.306048,0.00030328,7]
[364673428,1749195060530,-176.306048,0.00030328,7]
[364673429,1749195060540,-735.75,0.00030328,7]
[364673430,1749195060549,-877.87,0.00030328,7]
[364673431,1749195060559,-480.0,0.00030328,7]
[364673432,1749195060569,-176.306048,0.00030328,7]
[364673433,1749195060579,-176.306048,0.00030328,7]
[364673434,1749195060589,-1277.14,0.00030328,7]
[364673435,1749195060600,-480.0,0.00030328,7]
[364673436,1749195060610,-480.0,0.00030328,7]
[364673437,1749195060620,-480.0,0.00030328,7]
[364673438,1749195060629,-480.0,0.00030328,7]
[364673439,1749195060640,-480.0,0.00030328,7]
[364673440,1749195060650,-480.0,0.00030328,7]
[364673441,1749195060659,-480.0,0.00030328,7]
[364673442,1749195060669,-165.491368,0.00030328,7]
[364673443,1749195060679,-1290.57,0.00030328,7]
[364673444,1749195060688,-165.491368,0.00030328,7]
[364673445,1749195060698,-1271.05,0.00030328,7]
[364673446,1749195060708,-826.56,0.00030328,7]
[364673447,1749195060717,-480.0,0.00030328,7]
[364673448,1749195060726,-480.0,0.00030328,7]
[364673449,1749195060736,-229.396533,0.00030328,7]
[364673450,1749195060745,-165.491368,0.00030328,7]
[364673451,1749195060755,-631.37,0.00030328,7]
[364673452,1749195060764,-165.491368,0.00030328,7]
[364673453,1749195060774,-229.396533,0.00030328,7]
[364673454,1749195060784,-480.0,0.00030328,7]
[364673455,1749195060796,-970.2,0.00030328,7]
[364673456,1749195060809,-229.396533,0.00030328,7]
[364673457,1749195060818,-229.396533,0.00030328,7]
[364673458,1749195060827,-1222.52,0.00030328,7]
[364673459,1749195060838,-480.0,0.00030328,7]
[364673460,1749195060847,-2539.38,0.00030328,7]
[364673461,1749195060856,-1542.51,0.00030328,7]
[364673462,1749195060865,-151.0,0.00030328,7]
[364673463,1749195060876,-151.0,0.00030328,7]
[364673464,1749195060885,-480.0,0.00030328,7]
[364673465,1749195060895,-10430.48,0.00030328,7]
[364673466,1749195060904,-480.0,0.00030328,7]
[364673467,1749195060913,-480.0,0.00030328,7]
[364673468,1749195060923,-1000.0,0.00030328,21]
[364673469,1749195060932,-11561.67,0.00030328,7]
[364673470,1749195060941,-1163.68,0.00030328,7]
[364673471,1749195060950,-480.0,0.00030328,7]
[364673472,1749195060959,-480.0,0.00030328,7]
[364673473,1749195060968,-151.0,0.00030328,7]
[364673474,1749195060978,-151.0,0.00030328,7]
[364673475,1749195060987,-151.0,0.00030328,7]
[364673476,1749195060996,-151.0,0.00030328,7]
[364673477,1749195061006,-151.0,0.00030328,7]
[364673478,1749195061015,-151.0,0.00030328,7]
[364673479,1749195061025,-151.0,0.00030328,7]
[364673480,1749195061035,-858.39,0.00030328,7]
[364673481,1749195061044,-480.0,0.00030328,7]
[364673482,1749195061054,-914.71,0.00030328,7]
[364673483,1749195061064,-2156.64,0.00030328,7]
[364673484,1749195061074,-541.48541535,0.00030328,7]
[364673485,1749195061083,-915.61,0.00030328,7]
[364673486,1749195061093,-542.89148129,0.00030328,7]
[364673487,1749195061103,-436.12120979,0.00030328,7]
[364673488,1749195061112,-829.68,0.00030328,7]
[364673489,1749195061122,-827.97,0.00030328,7]
[364673490,1749195061132,-480.0,0.00030328,7]
[364673491,1749195061143,-480.0,0.00030328,7]
[364673492,1749195061153,-480.0,0.00030328,7]
[364673493,1749195061163,-1713.66,0.00030328,7]
[364673494,1749195061172,-585.77,0.00030328,7]
[364673495,1749195061182,-480.0,0.00030328,7]
[364673496,1749195061194,-480.0,0.00030328,7]
[364673497,1749195061205,-258.61886863,0.00030328,7]
[364673498,1749195061214,-739.36,0.00030328,7]
[364673499,1749195061223,-495.27808491,0.00030328,7]
[364673500,1749195061232,-495.76195994,0.00030328,7]
[364673501,1749195061242,-480.0,0.00030328,7]
[364673502,1749195061251,-876.27,0.00030328,7]
[364673503,1749195061260,-5400.04,0.00030328,7]
[364673504,1749195061270,-480.0,0.00030328,7]
[364673505,1749195061280,-480.0,0.00030328,7]
[364673506,1749195061290,-480.0,0.00030328,2]
[364673507,1749195061299,-2278.3,0.00030328,7]
[364673508,1749195061309,-516.58,0.00030328,7]
[364673509,1749195061318,-1129.21,0.00030328,7]
[364673510,1749195061328,-1447.61,0.00030328,7]
[364673511,1749195061337,-480.0,0.00030328,7]
[364673512,1749195061347,-480.0,0.00030328,7]
[364673513,1749195061356,-897.4,0.00030328,7]
[364673514,1749195061366,-1119.97,0.00030328,7]
[364673515,1749195061376,-480.0,0.00030328,7]
[364673516,1749195061386,-480.0,0.00030328,7]
[364673517,1749195061399,-6870.87,0.00030328,7]
[364673518,1749195061409,-492.18338987,0.00030328,7]
[364673519,1749195061419,-480.0,0.00030328,7]
[364673520,1749195061429,-480.0,0.00030328,7]
[364673521,1749195061439,-480.0,0.00030328,7]
[364673522,1749195061449,-2323.71,0.00030328,7]
[364673523,1749195061459,-2610.15,0.00030328,7]
[364673524,1749195061469,-480.0,0.00030328,7]
[364673525,1749195061479,-1362.71,0.00030328,7]
[364673526,1749195061490,-637.38,0.00030328,7]
[364673527,1749195061499,-1535.375151,0.00030328,7]
[364673528,1749195061509,-650.21,0.00030328,7]
[364673529,1749195061519,-1535.375151,0.00030328,7]
[364673530,1749195061530,-2333.08,0.00030328,7]
[364673531,1749195061540,-1310.63,0.00030328,7]
[364673532,1749195061551,-639.4,0.00030328,7]
[364673533,1749195061561,-480.0,0.00030328,7]
[364673534,1749195061571,-480.0,0.00030328,7]
[364673535,1749195061582,-480.0,0.00030328,7]
[364673536,1749195061593,-588.89,0.00030328,7]
[364673537,1749195061603,-3922.8,0.00030328,7]
[364673538,1749195061613,-836.03,0.00030328,7]
[364673539,1749195061624,-1535.375151,0.00030328,7]
[364673540,1749195061634,-480.0,0.00030328,7]
[364673541,1749195061644,-1535.375151,0.00030328,7]
[364673542,1749195061654,-480.0,0.00030328,7]
[364673543,1749195061664,-1666.57,0.00030328,7]
[364673544,1749195061674,-480.0,0.00030328,7]
[364673545,1749195061684,-533.99,0.00030328,7]
[364673546,1749195061694,-1000.0,0.00030328,15]
[364673547,1749195061703,-480.0,0.00030328,7]
[364673548,1749195061713,-480.0,0.00030328,7]
[364673549,1749195061723,-1353.76,0.00030328,7]
[364673550,1749195061732,-480.0,0.00030328,7]
[364673551,1749195061742,-1524.78,0.00030328,7]
[364673552,1749195061752,-2057.71,0.00030328,7]
[364673553,1749195061762,-1978.82,0.00030328,7]
[364673554,1749195061771,-3977.08,0.00030328,7]
[364673555,1749195061782,-665.52,0.00030328,7]
[364673556,1749195061792,-635.04,0.00030328,7]
[364673557,1749195061805,-1908.77,0.00030328,7]
[364673558,1749195061814,-10873.55,0.00030328,7]
[364673559,1749195061824,-480.0,0.00030328,7]
[364673560,1749195061836,-365.5181928,0.00030328,2]
[364673561,1749195061846,-2487.41,0.00030328,7]
[364673562,1749195061855,-1758.02,0.00030328,7]
[364673563,1749195061865,-480.0,0.00030328,7]
[364673564,1749195061876,-480.0,0.00030328,7]
[364673565,1749195061887,-480.0,0.00030328,7]
[364673566,1749195061898,-480.0,0.00030328,7]
[364673567,1749195061908,-2387.99,0.00030328,7]
[364673568,1749195061918,-2639.99,0.00030328,7]
[364673569,1749195061928,-480.0,0.00030328,7]
[364673570,1749195061938,-1125.45,0.00030328,7]
[364673571,1749195061948,-300.0,0.00030328,7]
[364673572,1749195061958,-481.98353852,0.00030328,7]
[364673573,1749195061967,-576.11,0.00030328,7]
[364673574,1749195061977,-480.0,0.00030328,7]
[364673575,1749195061987,-1254.76,0.00030328,7]
[364673576,1749195061996,-480.0,0.00030328,7]
[364673577,1749195062006,-791.42,0.00030328,7]
[364673578,1749195062016,-947.63,0.00030328,7]
[364673579,1749195062025,-4581.4,0.00030328,7]
[364673580,1749195062035,-480.0,0.00030328,7]
[364673581,1749195062045,-514.28,0.00030328,7]
[364673582,1749195062054,-2500.36,0.00030328,7]
[364673583,1749195062064,-480.0,0.00030328,7]
[364673584,1749195062073,-1679.3,0.00030328,7]
[364673585,1749195062083,-1666.44,0.00030328,7]
[364673586,1749195062093,-2002.83,0.00030328,7]
[364673587,1749195062102,-1000.0,0.00030328,7]
[364673588,1749195062112,-2964.95,0.00030328,7]
[364673589,1749195062122,-1463.84,0.00030328,7]
[364673590,1749195062131,-480.0,0.00030328,7]
[364673591,1749195062141,-480.0,0.00030328,7]
[364673592,1749195062151,-480.0,0.00030328,7]
[364673593,1749195062160,-2141.33,0.00030328,7]
[364673594,1749195062170,-3269.76,0.00030328,7]
[364673595,1749195062179,-1459.06,0.00030328,7]
[364673596,1749195062189,-1061.57,0.00030328,7]
[364673597,1749195062199,-2685.06,0.00030328,7]
[364673598,1749195062208,-480.0,0.00030328,7]
[364673599,1749195062218,-480.0,0.00030328,7]
[364673600,1749195062227,-448.366204,0.00030328,7]
[364673601,1749195062237,-448.366204,0.00030328,7]
[364673602,1749195062246,-5962.32,0.00030328,7]
[364673603,1749195062256,-4171.06,0.00030328,7]
[364673604,1749195062266,-848.41,0.00030328,7]
[364673605,1749195062275,-1102.24,0.00030328,7]
[364673606,1749195062285,-480.0,0.00030328,7]
[364673607,1749195062295,-427.03412895,0.00030328,7]
[364673608,1749195062304,-448.366204,0.00030328,7]
[364673609,1749195062314,-448.366204,0.00030328,7]
[364673610,1749195062323,-480.0,0.00030328,7]
[364673611,1749195062333,-2463.45,0.00030328,7]
[364673612,1749195062342,-151.0,0.00030328,7]
[364673613,1749195062351,-907.782064,0.00030328,7]
[364673614,1749195062361,-151.0,0.00030328,7]
[364673615,1749195062370,-907.782064,0.00030328,7]
[364673616,1749195062380,-500.31167585,0.00030328,7]
[364673617,1749195062390,-493.16,0.00030328,7]
[364673618,1749195062400,-1462.66,0.00030328,2]
[364673619,1749195062409,-577.1,0.00030328,7]
[364673620,1749195062419,-1324.81,0.00030328,7]
[364673621,1749195062429,-2024.69,0.00030328,7]
[364673622,1749195062439,-17017.79,0.00030328,7]
[364673623,1749195062449,-2126.16,0.00030328,7]
[364673624,1749195062459,-907.782064,0.00030328,7]
[364673625,1749195062468,-480.0,0.00030328,7]
[364673626,1749195062478,-907.782064,0.00030328,7]
[364673627,1749195062489,-1317.38,0.00030328,7]
[364673628,1749195062499,-4422.82,0.00030328,7]
[364673629,1749195062508,-480.0,0.00030328,7]
[364673630,1749195062518,-1523.3,0.00030328,7]
[364673631,1749195062528,-480.0,0.00030328,7]
[364673632,1749195062538,-480.0,0.00030328,7]
[364673633,1749195062548,-3713.24,0.00030328,7]
[364673634,1749195062557,-151.0,0.00030328,7]
[364673635,1749195062568,-480.0,0.00030328,7]
[364673636,1749195062578,-1166.4,0.00030328,7]
[364673637,1749195062587,-1334.57,0.00030328,7]
[364673638,1749195062597,-480.0,0.00030328,7]
[364673639,1749195062607,-493.44260344,0.00030328,7]
[364673640,1749195062617,-480.0,0.00030328,7]
[364673641,1749195062627,-984.05,0.00030328,7]
[364673642,1749195062637,-151.0,0.00030328,7]
[364673643,1749195062648,-2104.79,0.00030328,7]
[364673644,1749195062659,-480.0,0.00030328,7]
[364673645,1749195062669,-6223.16,0.00030328,7]
[364673646,1749195062679,-449.71357824,0.00030328,7]
[364673647,1749195062689,-480.0,0.00030328,7]
[364673648,1749195062699,-1264.89,0.00030328,7]
[364673649,1749195062709,-480.0,0.00030328,7]
[364673650,1749195062719,-2602.39,0.00030328,7]
[364673651,1749195062729,-1207.83,0.00030328,7]
[364673652,1749195062738,-12037.38,0.00030328,7]
[364673653,1749195062748,-480.0,0.00030328,7]
[364673654,1749195062758,-151.0,0.00030328,7]
[364673655,1749195062767,-649.09,0.00030328,7]